bitfinex-derivatives/quotes_BTCF0:USTF0_20250811
["timestamp","ask_amount","ask_price","bid_price","bid_amount"]
[1754904183076,0.755,121300.0,121290.0,1.82401084]
[1754904183582,0.75488,121300.0,121290.0,1.82401084]
[1754904184484,0.75488,121300.0,121290.0,1.53067249]
[1754904184685,0.82226993,121300.0,121290.0,1.82401084]
[1754904186082,0.06938993,121300.0,121290.0,1.82401084]
[1754904186288,0.82202993,121300.0,121290.0,2.34969883]
[1754904186482,0.002,121300.0,121290.0,2.34969883]
[1754904186784,0.75464,121300.0,121290.0,2.34969883]
[1754904187573,0.75464,121300.0,121290.0,2.18481084]
[1754904187779,0.002,121300.0,121290.0,2.34969883]
[1754904188084,0.7548,121300.0,121290.0,2.34969883]
[1754904188480,0.82054113,121300.0,121290.0,2.34969883]
[1754904189381,1e-07,121300.0,121290.0,2.34969883]
[1754904189586,1.0001001,121320.0,121310.0,0.0824399]
[1754904189880,2.04639845,121320.0,121310.0,0.56762097]
[1754904190183,2.04639845,121320.0,121310.0,0.74565792]
[1754904190384,2.04639845,121320.0,121310.0,1.24565792]
[1754904190781,2.04639845,121320.0,121310.0,1.74565792]
[1754904190981,2.04649845,121320.0,121310.0,1.74575792]
[1754904191384,2.04649845,121320.0,121310.0,2.10655792]
[1754904191590,2.04949845,121320.0,121310.0,2.11755792]
[1754904192289,1.7561601,121320.0,121310.0,2.11755792]
[1754904192478,2.04949845,121320.0,121310.0,2.11755792]
[1754904192878,2.11562437,121320.0,121310.0,2.11755792]
[1754904193288,1.82228602,121320.0,121310.0,2.11755792]
[1754904193591,2.11562437,121320.0,121310.0,2.11755792]
[1754904193779,2.11562437,121320.0,121310.0,2.47296595]
[1754904194288,2.09687645,121320.0,121310.0,2.47296595]
[1754904194591,2.09787645,121320.0,121310.0,2.47496595]
[1754904195089,1.11652427,121320.0,121310.0,2.47496595]
[1754904195688,1.19895737,121320.0,121310.0,2.11416595]
[1754904196386,1.18906813,121320.0,121310.0,2.11416595]
[1754904199988,1.18906813,121320.0,121310.0,1.75875792]
[1754904201089,0.44599737,121320.0,121310.0,1.75875792]
[1754904201288,1.19787737,121320.0,121310.0,1.75875792]
[1754904201689,1.19787737,121320.0,121310.0,1.39795792]
[1754904201889,1.19787737,121320.0,121310.0,1.75875792]
[1754904202289,1.19787737,121320.0,121310.0,1.39795792]
[1754904202492,1.19787737,121320.0,121310.0,1.75875792]
[1754904204099,1.19787737,121320.0,121310.0,1.39795792]
[1754904206694,1.19787737,121320.0,121310.0,1.75875792]
[1754904206897,1.19787737,121320.0,121310.0,1.39795792]
[1754904207194,1.49221572,121320.0,121310.0,1.31551802]
[1754904207401,1.49221572,121320.0,121310.0,1.39795792]
[1754904208097,0.44599737,121320.0,121310.0,1.39795792]
[1754904208399,1.19859737,121320.0,121310.0,1.39795792]
[1754904209202,1.19903737,121320.0,121310.0,1.75875792]
[1754904210201,1.19903737,121320.0,121310.0,1.39795792]
[1754904210802,1.19903737,121320.0,121310.0,1.75875792]
[1754904212195,0.44599737,121320.0,121310.0,1.75875792]
[1754904212404,1.19879737,121320.0,121310.0,1.75875792]
[1754904212596,0.36356427,121320.0,121310.0,1.75875792]
[1754904212796,1.19899737,121320.0,121310.0,1.75875792]
[1754904215602,1.19899737,121320.0,121310.0,1.39795792]
[1754904215802,1.19899737,121320.0,121310.0,1.75875792]
[1754904216400,0.44599737,121320.0,121310.0,1.75875792]
[1754904216598,1.19863737,121320.0,121310.0,1.75875792]
[1754904217907,1.1699981,121320.0,121310.0,1.39785792]
[1754904218302,1.1699981,121320.0,121310.0,1.75865792]
[1754904218600,0.4173581,121320.0,121310.0,1.75865792]
[1754904218803,1.1698381,121320.0,121310.0,1.75865792]
[1754904219004,1.1699381,121320.0,121310.0,1.75875792]
[1754904221204,0.04168665,121320.0,121310.0,1.75875792]
[1754904221404,1.087305,121320.0,121310.0,1.75875792]
[1754904222102,1.1697381,121320.0,121310.0,1.75875792]
[1754904222308,0.4174581,121320.0,121310.0,1.75875792]
[1754904222507,1.1697781,121320.0,121310.0,1.75875792]
[1754904223907,1.087345,121320.0,121310.0,1.75875792]
[1754904224906,1.1697781,121320.0,121310.0,1.75875792]
[1754904225104,1.46311645,121320.0,121310.0,1.75875792]
[1754904225308,1.46311645,121320.0,121310.0,1.39795792]
[1754904225509,1.1697781,121320.0,121310.0,1.75875792]
[1754904226008,1.1697781,121320.0,121310.0,1.39795792]
[1754904226203,1.1697781,121320.0,121310.0,1.75875792]
[1754904226598,1.1697781,121320.0,121310.0,1.39795792]
[1754904226904,1.46311645,121320.0,121310.0,1.75875792]
[1754904227103,1.1697781,121320.0,121310.0,1.75875792]
[1754904227608,1.1697781,121320.0,121310.0,1.39795792]
[1754904228709,1.17124778,121320.0,121310.0,1.39795792]
[1754904229208,1.17124778,121320.0,121310.0,1.75875792]
[1754904229404,1.17124778,121320.0,121310.0,1.39795792]
[1754904229609,1.17124778,121320.0,121310.0,1.75875792]
[1754904229806,1.17124778,121320.0,121310.0,1.39795792]
[1754904230202,1.17096778,121320.0,121310.0,1.39795792]
[1754904232210,1.46430613,121320.0,121310.0,1.39795792]
[1754904237713,0.12558943,121320.0,121310.0,1.39795792]
[1754904237914,1.46374613,121320.0,121310.0,1.39795792]
[1754904240316,1.53756209,121320.0,121310.0,1.39795792]
[1754904244628,1.53712209,121320.0,121310.0,1.39795792]
[1754904248520,0.87662943,121320.0,121310.0,1.39795792]
[1754904248722,1.53712209,121320.0,121310.0,1.39795792]
[1754904251730,1.53825367,121320.0,121310.0,1.39795792]
[1754904255036,0.78721367,121320.0,121310.0,1.39795792]
[1754904255237,1.53765367,121320.0,121310.0,1.39795792]
[1754904255434,0.78721367,121320.0,121310.0,1.39795792]
[1754904255835,1.53761367,121320.0,121310.0,1.39795792]
[1754904257135,1.89841367,121320.0,121310.0,1.39795792]
[1754904260443,1.14801367,121320.0,121310.0,1.39795792]
[1754904260745,1.89841367,121320.0,121310.0,1.39795792]
[1754904261644,1.88852355,121320.0,121310.0,1.39795792]
[1754904262745,1.88852355,121320.0,121310.0,1.75336595]
[1754904264045,0.77732355,121320.0,121310.0,1.75336595]
[1754904264442,1.52784355,121320.0,121310.0,1.75336595]
[1754904264746,1.52784355,121320.0,121310.0,1.39795792]
[1754904265245,1.79214355,121320.0,121310.0,1.39795792]
[1754904265647,1.04162355,121320.0,121310.0,1.39795792]
[1754904266045,0.38113089,121320.0,121310.0,1.39795792]
[1754904266347,1.79210355,121320.0,121310.0,1.39795792]
[1754904266647,1.04162355,121320.0,121310.0,1.39795792]
[1754904267044,1.79214355,121320.0,121310.0,1.39795792]
[1754904268648,1.79202355,121320.0,121310.0,1.39795792]
[1754904274250,0.95919045,121320.0,121310.0,1.39795792]
[1754904274551,1.70959045,121320.0,121310.0,1.39795792]
[1754904274851,1.04909779,121320.0,121310.0,1.39795792]
[1754904275045,1.70959045,121320.0,121310.0,1.39795792]
[1754904275746,2.07029045,121320.0,121290.0,0.38688146]
[1754904275946,0.33024633,121300.0,121290.0,0.46933496]
[1754904276247,1.08064633,121300.0,121290.0,1.26886731]
[1754904276641,1.08324759,121300.0,121290.0,1.26886731]
[1754904276842,1.08324759,121300.0,121290.0,1.62727534]
[1754904277051,1.08334759,121300.0,121290.0,1.62737534]
[1754904277251,1.08434759,121300.0,121290.0,1.63037534]
[1754904277444,0.75410126,121300.0,121290.0,2.13037534]
[1754904277640,1.08434759,121300.0,121290.0,2.12737534]
[1754904277850,1.08534759,121300.0,121290.0,2.13037534]
[1754904278951,1.08534759,121300.0,121290.0,1.77496731]
[1754904279152,1.08534759,121300.0,121290.0,1.77296731]
[1754904279447,0.66519392,121300.0,121290.0,1.76996731]
[1754904279753,1.41559392,121300.0,121290.0,1.76996731]
[1754904280146,1.08534759,121300.0,121290.0,1.76996731]
[1754904282656,0.75510126,121300.0,121290.0,1.76996731]
[1754904282858,1.08534759,121300.0,121290.0,1.76996731]
[1754904284059,1.41559392,121300.0,121290.0,1.76996731]
[1754904284658,0.91857472,121300.0,121290.0,1.76986731]
[1754904285059,1.24882105,121300.0,121290.0,1.76986731]
[1754904285556,0.66049266,121300.0,121290.0,1.76986731]
[1754904286255,0.66049266,121300.0,121290.0,1.40906731]
[1754904286455,0.66049266,121300.0,121290.0,1.76996731]
[1754904286456,1.41099266,121300.0,121290.0,1.76996731]
[1754904286655,0.66059266,121300.0,121290.0,1.76996731]
[1754904286856,1.41099266,121300.0,121290.0,1.76996731]
[1754904287659,0.66059266,121300.0,121290.0,1.76996731]
[1754904287860,1.41099266,121300.0,121290.0,1.76996731]
[1754904288061,0.66059266,121300.0,121290.0,1.76996731]
[1754904288361,1.41099266,121300.0,121290.0,1.76996731]
[1754904288563,0.66059266,121300.0,121290.0,1.76996731]
[1754904288760,1.41095266,121300.0,121290.0,1.76996731]
[1754904289262,0.66059266,121300.0,121290.0,1.76996731]
[1754904289463,1.41095266,121300.0,121290.0,1.76996731]
[1754904289663,0.66059266,121300.0,121290.0,1.76996731]
[1754904289865,1.41095266,121300.0,121290.0,1.76996731]
[1754904290861,0.66059266,121300.0,121290.0,1.76996731]
[1754904291171,1.85419936,121300.0,121290.0,1.38452004]
[1754904291559,1.8255577,121300.0,121290.0,1.38452004]
[1754904292159,1.0751977,121300.0,121290.0,1.38452004]
[1754904292360,1.8255577,121300.0,121290.0,1.38452004]
[1754904292560,1.0751977,121300.0,121290.0,1.38452004]
[1754904292763,1.8255577,121300.0,121290.0,1.38452004]
[1754904293063,1.0751977,121300.0,121290.0,1.73992807]
[1754904293255,0.4433467,121300.0,121290.0,1.73992807]
[1754904293458,1.85419936,121300.0,121290.0,1.73992807]
[1754904294359,1.10383936,121300.0,121290.0,1.73992807]
[1754904294556,1.85419936,121300.0,121290.0,1.73992807]
[1754904295156,1.85419936,121300.0,121290.0,1.38452004]
[1754904300368,1.77175266,121300.0,121290.0,1.38452004]
[1754904300569,1.02139266,121300.0,121290.0,1.38452004]
[1754904300764,1.77179266,121300.0,121290.0,1.38452004]
[1754904300970,1.10383936,121300.0,121290.0,1.38452004]
[1754904301170,1.85423936,121300.0,121290.0,1.38452004]
[1754904301572,1.10383936,121300.0,121290.0,1.38452004]
[1754904301766,1.85423936,121300.0,121290.0,1.38452004]
[1754904302877,1.10383936,121300.0,121290.0,1.38452004]
[1754904303170,1.85423936,121300.0,121290.0,1.38452004]
[1754904307287,1.10383936,121300.0,121290.0,1.38452004]
[1754904307577,1.85423936,121300.0,121290.0,1.38452004]
[1754904308073,1.77179266,121300.0,121290.0,1.38452004]
[1754904308279,1.85423936,121300.0,121290.0,1.38452004]
[1754904309578,1.77179266,121300.0,121290.0,1.38452004]
[1754904311784,1.85423936,121300.0,121290.0,1.38452004]
[1754904312079,1.77179266,121300.0,121290.0,1.38452004]
[1754904312880,1.85423936,121300.0,121290.0,1.38452004]
[1754904313078,1.77179266,121300.0,121290.0,1.38452004]
[1754904313876,0.33034633,121300.0,121290.0,1.74532004]
[1754904314273,1.08074633,121300.0,121290.0,1.74532004]
[1754904315482,1.08074633,121300.0,121290.0,2.10072807]
[1754904316170,1.07085604,121300.0,121290.0,2.10062807]
[1754904316987,1.07085604,121300.0,121290.0,2.3969732]
[1754904317584,1.07085604,121300.0,121290.0,2.04156517]
[1754904317781,1.07095604,121300.0,121290.0,2.04166517]
[1754904318985,1.07095604,121300.0,121290.0,1.74532004]
[1754904320984,0.33034633,121300.0,121290.0,1.74532004]
[1754904321201,1.08074633,121300.0,121290.0,1.74532004]
[1754904321693,0.33034633,121300.0,121290.0,2.07556637]
[1754904321896,1.08074633,121300.0,121290.0,2.24045436]
[1754904322599,1.08074633,121300.0,121290.0,2.07556637]
[1754904322793,1.08074633,121300.0,121290.0,1.74532004]
[1754904323096,1.08074633,121300.0,121290.0,2.07556637]
[1754904323497,1.08074633,121300.0,121290.0,2.08556637]
[1754904324799,1.08074633,121300.0,121290.0,2.17532004]
[1754904324992,1.08074633,121300.0,121290.0,2.50556637]
[1754904325393,1.08074633,121300.0,121290.0,2.17532004]
[1754904327802,0.0001,121300.0,121290.0,2.17532004]
[1754904327998,1.08094633,121300.0,121290.0,2.17532004]
[1754904328500,1.08094633,121300.0,121290.0,2.50556637]
[1754904329299,1.08090633,121300.0,121290.0,2.50556637]
[1754904330599,1.08090633,121300.0,121290.0,2.17532004]
[1754904337007,0.75066,121300.0,121290.0,2.17532004]
[1754904337206,1.08090633,121300.0,121290.0,2.17532004]
[1754904339815,0.75066,121300.0,121290.0,2.17532004]
[1754904339998,1.08090633,121300.0,121290.0,2.17532004]
[1754904342912,1.08082633,121300.0,121290.0,2.50556637]
[1754904345011,1.08082633,121300.0,121290.0,2.17532004]
[1754904347019,1.08086633,121300.0,121290.0,2.17532004]
[1754904347813,1.41111266,121300.0,121290.0,1.81452004]
[1754904348012,1.49391936,121300.0,121290.0,1.82452004]
[1754904348210,0.66059266,121300.0,121290.0,1.82452004]
[1754904348412,1.41147266,121300.0,121290.0,1.82452004]
[1754904349406,0.66059266,121300.0,121290.0,1.82452004]
[1754904349610,1.41139266,121300.0,121290.0,1.82452004]
[1754904349806,0.66059266,121300.0,121290.0,1.82452004]
[1754904350111,1.41135266,121300.0,121290.0,1.82452004]
[1754904352321,1.49379936,121300.0,121290.0,1.82452004]
[1754904354320,1.41135266,121300.0,121290.0,1.82452004]
[1754904354822,0.66059266,121300.0,121290.0,1.82452004]
[1754904355018,1.41123266,121300.0,121290.0,1.82452004]
[1754904355325,1.85447936,121300.0,121290.0,1.82452004]
[1754904357823,1.10383936,121300.0,121290.0,1.82452004]
[1754904358026,1.85455936,121300.0,121290.0,1.82452004]
[1754904359923,1.87176741,121300.0,121290.0,1.82452004]
[1754904360732,1.85455936,121300.0,121290.0,1.82452004]
[1754904360927,1.85435936,121300.0,121290.0,1.82452004]
[1754904361528,1.10383936,121300.0,121290.0,1.82452004]
[1754904361730,1.77183266,121300.0,121290.0,1.82452004]
[1754904362226,1.77183266,121300.0,121290.0,1.74063235]
[1754904362433,0.0824535,121290.0,121280.0,0.68]
[1754904362621,0.0824535,121290.0,121270.0,0.45626715]
[1754904362622,0.0824603,121280.0,121270.0,0.45626715]
[1754904362829,0.4432603,121280.0,121270.0,0.75626715]
[1754904363126,1.68885863,121280.0,121270.0,0.76173886]
[1754904363430,1.68905863,121280.0,121270.0,1.34420596]
[1754904363728,1.68915863,121280.0,121270.0,1.34430596]
[1754904363927,1.69115863,121280.0,121270.0,1.34530596]
[1754904364123,1.6546748,121280.0,121270.0,1.34530596]
[1754904364426,1.9484373,121280.0,121270.0,1.34530596]
[1754904364629,1.9484373,121280.0,121270.0,1.84530596]
[1754904365026,1.9494373,121280.0,121270.0,1.84630596]
[1754904365625,1.9493973,121280.0,121270.0,1.84630596]
[1754904366925,1.9493973,121280.0,121270.0,2.14257311]
[1754904367731,1.1987973,121280.0,121270.0,2.14257311]
[1754904367933,1.9493173,121280.0,121270.0,2.14257311]
[1754904368924,1.9493173,121280.0,121270.0,1.84630596]
[1754904369631,1.7844053,121280.0,121270.0,1.84630596]
[1754904371533,1.8667707,121280.0,121240.0,0.7732276]
[1754904371828,0.2937625,121260.0,121240.0,1.4569901]
[1754904372028,0.75056,121250.0,121240.0,1.34131323]
[1754904372332,0.75056,121250.0,121240.0,1.92377045]
[1754904372533,0.75056,121250.0,121240.0,1.92204877]
[1754904372733,0.75056,121250.0,121240.0,1.93880139]
[1754904372933,0.75066,121250.0,121240.0,1.64513889]
[1754904373333,0.75066,121250.0,121240.0,2.14513889]
[1754904373734,0.75066,121250.0,121240.0,2.1475737]
[1754904374135,0.75066,121250.0,121240.0,2.1515737]
[1754904374733,0.75166,121250.0,121240.0,2.1515737]
[1754904375139,0.0021,121250.0,121240.0,2.1505737]
[1754904375331,0.81982082,121250.0,121240.0,2.1505737]
[1754904375531,0.81982082,121250.0,121240.0,1.79006066]
[1754904375532,0.80626402,121250.0,121240.0,1.79006066]
[1754904375838,1.18857443,121250.0,121240.0,1.78996066]
[1754904376433,1.18857443,121250.0,121240.0,1.77320804]
[1754904376837,1.54937443,121250.0,121240.0,1.77320804]
[1754904377037,1.54947443,121250.0,121240.0,2.06957519]
[1754904378339,0.79891443,121250.0,121240.0,2.06957519]
[1754904378538,1.18871443,121250.0,121240.0,2.06957519]
[1754904379139,1.18871443,121250.0,121240.0,1.77330804]
[1754904381440,1.18871443,121250.0,121240.0,1.69082054]
[1754904383042,1.54951443,121250.0,121240.0,1.69082054]
[1754904383940,1.54951443,121250.0,121240.0,1.77330824]
[1754904384141,1.54951443,121250.0,121240.0,1.69082054]
[1754904384536,1.54951443,121250.0,121240.0,1.77330824]
[1754904387643,1.25575193,121250.0,121240.0,1.69082054]
[1754904387845,1.54951443,121250.0,121240.0,1.69082054]
[1754904388145,1.58769663,121250.0,121240.0,1.69082054]
[1754904388739,1.16640133,121250.0,121240.0,1.69082054]
[1754904388944,1.57429687,121250.0,121240.0,1.69082054]
[1754904389933,1.57529687,121250.0,121240.0,1.69282054]
[1754904390139,1.53957016,121250.0,121240.0,1.69282054]
[1754904391247,1.53957016,121250.0,121240.0,1.77530834]
[1754904391440,1.53941016,121250.0,121240.0,1.69282054]
[1754904392240,1.99826016,121250.0,121240.0,1.69138573]
[1754904392547,1.99838016,121250.0,121240.0,1.69138573]
[1754904392934,1.24650016,121250.0,121240.0,1.69138573]
[1754904393139,1.99850016,121250.0,121240.0,1.69138573]
[1754904393646,1.99850016,121250.0,121240.0,1.68838573]
[1754904393838,1.99850016,121250.0,121240.0,1.68638573]
[1754904394044,1.99850016,121250.0,121240.0,1.68838573]
[1754904396245,1.99857056,121250.0,121240.0,1.68838573]
[1754904396446,1.99857056,121250.0,121240.0,1.68738573]
[1754904403752,1.99857056,121250.0,121240.0,1.17803534]
[1754904403953,1.99857056,121250.0,121240.0,1.68953395]
[1754904404353,1.99805056,121250.0,121240.0,1.68953395]
[1754904404552,1.99805056,121250.0,121240.0,1.18018356]
[1754904404853,1.99805056,121250.0,121240.0,1.38638515]
[1754904405258,1.99801056,121250.0,121240.0,1.22685295]
[1754904405555,1.99801056,121250.0,121240.0,0.99792665]
[1754904405757,1.99801056,121250.0,121240.0,0.89509705]
[1754904406058,1.99801056,121250.0,121240.0,0.72538985]
[1754904406253,1.99791056,121250.0,121240.0,0.63879885]
[1754904406554,0.0824878,121240.0,121230.0,1.02]
[1754904406856,2.92236378,121240.0,121230.0,1.09612072]
[1754904407054,3.08733178,121240.0,121230.0,1.17859834]
[1754904408044,3.08833178,121240.0,121230.0,1.17959834]
[1754904408252,3.08843178,121240.0,121230.0,1.17969834]
[1754904408454,3.08843178,121240.0,121230.0,1.67969834]
[1754904408653,3.08943178,121240.0,121230.0,1.68069834]
[1754904409463,3.08943178,121240.0,121230.0,1.67969834]
[1754904410663,2.92446378,121240.0,121230.0,1.67969834]
[1754904410863,3.08943178,121240.0,121230.0,1.67969834]
[1754904413659,2.33803178,121240.0,121230.0,1.67969834]
[1754904413866,1.87916579,121240.0,121230.0,1.76219284]
[1754904414171,2.63024579,121240.0,121230.0,1.67969834]
[1754904415469,2.3363478,121240.0,121230.0,1.76219284]
[1754904415670,2.63024579,121240.0,121230.0,1.76219284]
[1754904415870,2.63028579,121240.0,121230.0,1.76219284]
[1754904416875,1.5852678,121240.0,121230.0,1.76219284]
[1754904417073,2.3373478,121240.0,121230.0,1.76219284]
[1754904417868,2.63124579,121240.0,121230.0,1.76219284]
[1754904419271,2.3373478,121240.0,121230.0,1.76219284]
[1754904420469,2.63128579,121240.0,121230.0,1.76219284]
[1754904421774,2.63128579,121240.0,121230.0,1.76349284]
[1754904423077,2.3373878,121240.0,121230.0,1.76349284]
[1754904423385,1.5852678,121240.0,121230.0,2.05739083]
[1754904423678,2.3372278,121240.0,121230.0,1.76492787]
[1754904423878,1.50278,121240.0,121230.0,2.05882586]
[1754904424072,1.14198,121240.0,121230.0,2.05882586]
[1754904424282,1.89394,121240.0,121230.0,2.49981816]
[1754904424574,1.8939,121240.0,121230.0,2.66478616]
[1754904425977,0.75402,121240.0,121230.0,2.66478616]
[1754904426575,0.75402,121240.0,121230.0,2.96079417]
[1754904427478,0.0021,121240.0,121230.0,2.96079417]
[1754904427679,0.75402,121240.0,121230.0,2.96079417]
[1754904428178,0.0021,121240.0,121230.0,2.96079417]
[1754904428572,0.75382,121240.0,121230.0,2.96079417]
[1754904428776,0.0021,121240.0,121230.0,2.66478616]
[1754904429183,0.75386,121240.0,121230.0,2.66478616]
[1754904430382,0.0021,121240.0,121230.0,2.66478616]
[1754904430576,0.7539,121240.0,121230.0,2.66478616]
[1754904431081,0.0021,121240.0,121230.0,3.02019419]
[1754904431274,0.04844187,121250.0,121230.0,3.02019419]
[1754904431275,0.04844187,121250.0,121240.0,0.0824876]
[1754904431474,1e-07,121250.0,121240.0,1.48115388]
[1754904431778,1e-07,121250.0,121240.0,1.86267726]
[1754904431980,1e-07,121250.0,121240.0,3.19696169]
[1754904432575,1e-07,121250.0,121240.0,3.20696169]
[1754904432778,0.0001001,121250.0,121240.0,3.20706169]
[1754904433181,0.0011001,121250.0,121240.0,3.56123936]
[1754904433480,0.0011001,121250.0,121240.0,4.06123936]
[1754904433884,0.0041001,121250.0,121240.0,4.06223936]
[1754904434480,0.004,121250.0,121240.0,1.86542798]
[1754904434677,1e-07,121250.0,121240.0,2.4303932]
[1754904434882,1e-07,121250.0,121240.0,3.14667643]
[1754904435596,1e-07,121250.0,121240.0,2.78587643]
[1754904435885,0.0001001,121250.0,121240.0,3.14677643]
[1754904436074,0.0001001,121250.0,121240.0,2.78597643]
[1754904436380,0.0001001,121250.0,121240.0,3.72194643]
[1754904436588,0.0001001,121250.0,121240.0,3.72514643]
[1754904436782,0.0001001,121250.0,121240.0,4.08594643]
[1754904436992,1e-07,121250.0,121240.0,4.08584643]
[1754904437299,1e-07,121250.0,121240.0,4.08564643]
[1754904437584,1e-07,121250.0,121240.0,3.33396643]
[1754904437784,1e-07,121250.0,121240.0,4.08564643]
[1754904438187,1e-07,121250.0,121240.0,3.13705045]
[1754904438381,1e-07,121250.0,121240.0,3.72484643]
[1754904439186,1e-07,121250.0,121240.0,4.01946343]
[1754904441888,1e-07,121250.0,121240.0,4.01950343]
[1754904444394,1e-07,121250.0,121240.0,3.26778343]
[1754904444601,1e-07,121250.0,121240.0,4.01946343]
[1754904445389,1e-07,121250.0,121240.0,3.72484643]
[1754904445895,1e-07,121250.0,121240.0,4.01965117]
[1754904446898,1e-07,121250.0,121240.0,3.43185519]
[1754904447097,1e-07,121250.0,121240.0,4.01965117]
[1754904447397,1e-07,121250.0,121240.0,4.01936425]
[1754904447996,1e-07,121250.0,121240.0,3.72455951]
[1754904448196,1e-07,121250.0,121240.0,4.01953719]
[1754904448801,0.3608001,121250.0,121240.0,2.20610258]
[1754904448993,0.3608001,121250.0,121240.0,2.79539018]
[1754904449503,0.350908,121250.0,121240.0,2.79539018]
[1754904450704,0.350908,121250.0,121240.0,2.50149219]
[1754904450902,0.351008,121250.0,121240.0,2.50159219]
[1754904453809,0.351008,121250.0,121240.0,2.50395219]
[1754904455905,0.351008,121250.0,121240.0,2.04401018]
[1754904456100,0.350908,121250.0,121240.0,1.21994559]
[1754904456307,0.350908,121250.0,121240.0,2.31635653]
[1754904456605,0.352908,121250.0,121240.0,2.32035653]
[1754904457405,0.352908,121250.0,121240.0,2.38600482]
[1754904457604,0.353008,121250.0,121240.0,2.38610482]
[1754904459406,0.352908,121250.0,121240.0,0.29389799]
[1754904459602,0.352908,121250.0,121240.0,1.44600039]
[1754904459901,0.352908,121250.0,121240.0,0.87442931]
[1754904460101,1.14166199,121250.0,121240.0,0.87442931]
[1754904460509,1.86645237,121250.0,121240.0,0.87442931]
[1754904460700,1.86655237,121250.0,121240.0,0.87452931]
[1754904461007,1.11311237,121250.0,121240.0,0.87452931]
[1754904461205,1.86651237,121250.0,121240.0,0.87452931]
[1754904463008,1.11311237,121250.0,121240.0,0.87452931]
[1754904463204,1.86631237,121250.0,121230.0,1.30465484]
[1754904463404,1.40785799,121240.0,121220.0,0.918152]
[1754904463599,0.3608,121230.0,121220.0,1.0831546]
[1754904463910,0.3608,121230.0,121220.0,1.74544474]
[1754904464095,0.3608,121230.0,121220.0,0.99228474]
[1754904464597,0.3608,121230.0,121220.0,1.74736474]
[1754904464801,0.3609,121230.0,121220.0,1.74746474]
[1754904465804,0.65479799,121230.0,121220.0,1.74746474]
[1754904466008,0.65479799,121230.0,121220.0,1.74734474]
[1754904466308,0.65479799,121230.0,121220.0,1.74534474]
[1754904466509,0.65679799,121230.0,121220.0,1.75134474]
[1754904466709,0.65679799,121230.0,121220.0,1.75277964]
[1754904466911,0.65679799,121230.0,121220.0,1.75265964]
[1754904467105,0.65679799,121230.0,121220.0,1.58766764]
[1754904467312,0.65669799,121230.0,121220.0,0.13]
[1754904467608,0.3628,121230.0,121220.0,1.5202866]
[1754904467799,0.65669799,121230.0,121220.0,0.7674466]
[1754904469310,1.88559693,121230.0,121220.0,0.7674466]
[1754904469606,1.88569693,121230.0,121220.0,0.7675466]
[1754904470002,1.88559693,121230.0,121220.0,0.09]
[1754904470216,1.88559693,121230.0,121220.0,0.75666367]
[1754904470410,1.13279693,121230.0,121220.0,0.75666367]
[1754904470603,1.88551693,121230.0,121220.0,0.75809864]
[1754904472513,1.88551693,121230.0,121190.0,1.2653285]
[1754904472714,0.7216,121200.0,121190.0,1.7278502]
[1754904473014,0.7217,121200.0,121190.0,1.89768135]
[1754904473613,0.7217,121200.0,121190.0,1.4853155]
[1754904475012,0.7217,121200.0,121190.0,1.59056984]
[1754904475214,0.7227,121200.0,121190.0,1.59056984]
[1754904475807,0.7227,121200.0,121190.0,0.83928499]
[1754904476005,0.7227,121200.0,121190.0,1.59156499]
[1754904476206,1.01659799,121200.0,121190.0,0.83928499]
[1754904476405,1.76891799,121200.0,121190.0,1.02939702]
[1754904476819,1.76891799,121200.0,121190.0,0.64939702]
[1754904477420,1.01659799,121200.0,121190.0,0.64796187]
[1754904477718,1.76935799,121200.0,121190.0,0.64796187]
[1754904478119,1.77131799,121200.0,121190.0,0.64996187]
[1754904478420,1.77131799,121200.0,121190.0,0.29482789]
[1754904480328,1.01859799,121200.0,121190.0,0.29482789]
[1754904480524,1.01859799,121200.0,121190.0,0.29626315]
[1754904480729,1.77111799,121200.0,121190.0,0.29626315]
[1754904481334,1.01859799,121200.0,121190.0,0.29626315]
[1754904481536,1.77107799,121200.0,121190.0,0.29626315]
[1754904482237,1.47718,121200.0,121190.0,0.37920594]
[1754904482438,0.7247,121200.0,121190.0,0.47920594]
[1754904482938,1.47726,121200.0,121190.0,0.47920594]
[1754904483237,1.47726,121200.0,121190.0,0.5212652]
[1754904484438,0.7247,121200.0,121190.0,0.5212652]
[1754904484639,1.4773,121200.0,121190.0,0.5212652]
[1754904485342,1.4773,121200.0,121190.0,0.52270043]
[1754904486341,1.45853864,121200.0,121190.0,0.52270043]
[1754904486840,1.45853864,121200.0,121190.0,0.87757606]
[1754904487043,0.70593864,121200.0,121190.0,0.87757606]
[1754904487437,1.45853864,121200.0,121190.0,0.87757606]
[1754904488740,1.45853864,121200.0,121190.0,0.52270043]
[1754904489142,1.44864254,121200.0,121190.0,0.52270043]
[1754904490244,1.74254053,121200.0,121190.0,0.52270043]
[1754904491538,1.74234053,121200.0,121190.0,0.0825217]
[1754904491842,1.74234053,121200.0,121190.0,0.33037765]
[1754904492343,1.77099799,121200.0,121190.0,0.47170292]
[1754904494832,1.77099799,121200.0,121190.0,0.47313815]
[1754904496944,1.01859799,121200.0,121190.0,0.47313815]
[1754904497143,1.85291289,121200.0,121190.0,0.29061645]
[1754904497344,2.14681088,121200.0,121190.0,0.29061645]
[1754904497845,1.77039799,121200.0,121190.0,0.37313815]
[1754904498445,1.85291289,121200.0,121190.0,0.37313815]
[1754904498644,1.83415147,121200.0,121190.0,0.37313815]
[1754904498851,1.75163657,121200.0,121190.0,0.37313815]
[1754904499754,1.83415147,121200.0,121190.0,0.37313815]
[1754904500051,1.83425147,121200.0,121190.0,0.29071645]
[1754904502155,1.83393147,121200.0,121190.0,0.29071645]
[1754904502348,2.12782946,121200.0,121190.0,0.29071645]
[1754904502543,2.11793329,121200.0,121190.0,0.29071645]
[1754904503651,1.8240353,121200.0,121190.0,0.29071645]
[1754904503951,1.7415204,121200.0,121190.0,0.37323815]
[1754904504152,1.44754241,121200.0,121190.0,0.37323815]
[1754904504349,1.7414404,121200.0,121190.0,0.37323815]
[1754904504952,1.7414404,121200.0,121190.0,0.47323815]
[1754904507255,1.44754241,121200.0,121190.0,0.47323815]
[1754904507554,0.69604241,121200.0,121150.0,0.4279366]
[1754904507754,0.34855,121180.0,121170.0,0.0825353]
[1754904507950,0.60121338,121180.0,121170.0,0.29592667]
[1754904508142,0.58768561,121180.0,121170.0,0.34592667]
[1754904508346,0.3608,121190.0,121180.0,0.2475729]
[1754904508546,0.62869799,121190.0,121180.0,0.3475729]
[1754904508748,0.29399799,121190.0,121180.0,0.64755006]
[1754904508947,0.29389799,121190.0,121180.0,0.65745006]
[1754904509149,0.28679799,121190.0,121180.0,0.70745006]
[1754904509450,0.11346799,121190.0,121180.0,0.70745006]
[1754904509644,0.10720799,121190.0,121180.0,0.70745006]
[1754904509848,0.09751799,121190.0,121180.0,0.70745006]
[1754904510048,0.05935799,121190.0,121180.0,0.70755006]
[1754904510348,0.05935799,121190.0,121180.0,0.70898523]
[1754904510548,0.29389799,121190.0,121180.0,1.01968523]
[1754904510750,1.2363704,121200.0,121180.0,1.01968523]
[1754904511050,1.2343704,121200.0,121180.0,1.01825006]